[Event "Asian Amateur Rapid 2024"]
[Site "Al Ain"]
[Date "2024.12.15"]
[Round "6.13"]
[White "Ahsan Feroz"]
[Black "Hayder, Hassan Shyaa"]
[Result "0-1"]
[ECO "D30"]
[WhiteElo "1795"]
[BlackElo "1991"]
[Annotator "NA COMBH"]
[PlyCount "114"]
[EventDate "2024.12.15"]
[EventType "swiss"]
[EventCountry "UAE"]
[SourceTitle "playchess.com"]
[Source "ChessBase"]
[SourceQuality "1"]
[TimeControl "900+10"]

1. d4 {[%emt 0:00:01]} d5 {[%emt 0:00:02]} 2. c4 {[%emt 0:00:01]} e6 {[%emt 0:00:02]} 3. Nf3 {[%emt 0:00:01]} Nf6 {[%emt 0:00:01]} 4. g3 {[%emt 0:00:01]} Be7 {[%emt 0:00:19]} 5. Bg2 {[%emt 0:00:00]} O-O {[%emt 0:00:24]} 6. O-O {[%emt 0:00:03]} dxc4 {[%emt 0:00:26]} 7. Qc2 {[%emt 0:00:00]} c6 {[%emt 0:00:21]} 8. Qxc4 {[%emt 0:00:34]} b5 {[%emt 0:00:02]} 9. Qc2 {[%emt 0:00:08]} Bb7 {[%emt 0:00:03]} 10. Rd1 {[%emt 0:00:12]} Qb6 {[%emt 0:00:12]} 11. Nbd2 {[%emt 0:01:01]} c5 {[%emt 0:00:16]} 12. dxc5 {[%emt 0:00:09]} Bxc5 {[%emt 0:00:06]} 13. e3 {[%emt 0:00:48]} Bxe3 {[%emt 0:00:45]} 14. fxe3 {[%emt 0:00:08]} Qxe3+ {[%emt 0:00:03]} 15. Kh1 {[%emt 0:00:23]} Ng4 {[%emt 0:00:03]} 16. Nf1 {[%emt 0:03:07]} Nf2+ {[%emt 0:00:04]} 17. Kg1 {[%emt 0:00:04]} Nh3+ {[%emt 0:00:03]} 18. Kh1 {[%emt 0:00:04]} Qxf3 {[%emt 0:00:11]} 19. Bxf3 {[%emt 0:00:32]} Bxf3+ {[%emt 0:00:05]} 20. Qg2 {[%emt 0:00:01]} Nf2+ {[%emt 0:00:13]} 21. Kg1 {[%emt 0:00:04]} Bxg2 {[%emt 0:00:05]} 22. Kxf2 {[%emt 0:00:03]} Bxf1 {[%emt 0:01:36]} 23. Kxf1 {[%emt 0:00:07]} Nc6 {[%emt 0:00:02]} 24. Rd6 {[%emt 0:00:28]} Rac8 {[%emt 0:00:24]} 25. Be3 {[%emt 0:00:34]} Rfd8 {[%emt 0:00:26]} 26. Rad1 {[%emt 0:00:01]} a6 {[%emt 0:02:15]} 27. Ke2 {[%emt 0:00:17]} Rxd6 {[%emt 0:00:54]} 28. Rxd6 {[%emt 0:00:02]} Kf8 {[%emt 0:00:16]} 29. Rd7 {[%emt 0:00:08]} a5 {[%emt 0:04:30]} 30. a3 {[%emt 0:01:49]} Ke8 {[%emt 0:00:21]} 31. Rb7 {[%emt 0:00:07]} b4 {[%emt 0:00:02]} 32. Bc5 {[%emt 0:00:36]} bxa3 {[%emt 0:00:10]} 33. Bxa3 {[%emt 0:00:06]} Nb4 {[%emt 0:00:16]} 34. Bxb4 {[%emt 0:01:05]} axb4 {[%emt 0:00:07]} 35. Kd3 {[%emt 0:00:04]} Rd8+ {[%emt 0:00:18]} 36. Ke3 {[%emt 0:00:07]} Rd7 {[%emt 0:00:53]} 37. Rxb4 {[%emt 0:00:03]} Ke7 {[%emt 0:00:01]} 38. h4 {[%emt 0:01:10]} Kd6 {[%emt 0:00:27]} 39. Rc4 {[%emt 0:00:35]} Rb7 {[%emt 0:00:50]} 40. b4 {[%emt 0:00:11]} e5 {[%emt 0:00:29]} 41. g4 {[%emt 0:02:06]} f6 {[%emt 0:00:27]} 42. Ke4 {[%emt 0:02:21]} g6 {[%emt 0:00:44]} 43. h5 {[%emt 0:01:44]} Ra7 {[%emt 0:00:14]} 44. Rc8 {[%emt 0:00:21]} Rb7 {[%emt 0:00:11]} 45. Rc4 {[%emt 0:00:03]} Rb6 {[%emt 0:00:02]} 46. Kd3 {[%emt 0:00:26]} f5 {[%emt 0:00:31]} 47. gxf5 {[%emt 0:00:14]} gxf5 {[%emt 0:00:02]} 48. Rc8 {[%emt 0:00:17]} Rxb4 {[%emt 0:00:54]} 49. Rh8 {[%emt 0:00:04]} Rb7 {[%emt 0:00:08]} 50. h6 {[%emt 0:00:14]} Ke6 {[%emt 0:00:04]} 51. Rg8 {[%emt 0:00:16]} Kf6 {[%emt 0:00:08]} 52. Kc4 {[%emt 0:00:06]} Rd7 {[%emt 0:00:27]} 53. Kc3 {[%emt 0:00:05]} e4 {[%emt 0:00:14]} 54. Kc2 {[%emt 0:00:02]} e3 {[%emt 0:00:22]} 55. Rg3 {[%emt 0:00:04]} f4 {[%emt 0:00:09]} 56. Rg4 {[%emt 0:00:04]} Rd2+ {[%emt 0:00:27]} 57. Kc1 {[%emt 0:00:01] Check Result:-#11} Rd4 {[%emt 0:00:20]} 0-1

[Event "Asian Amateur Rapid 2024"]
[Site "Al Ain"]
[Date "2024.12.15"]
[Round "6.14"]
[White "Muhammad Shayan Noushad Ibrahi"]
[Black "Saket Atul Kumar"]
[Result "0-1"]
[ECO "C54"]
[WhiteElo "1716"]
[BlackElo "1633"]
[Annotator "NA COMBH"]
[PlyCount "61"]
[EventDate "2024.12.15"]
[EventType "swiss"]
[EventCountry "UAE"]
[SourceTitle "playchess.com"]
[Source "ChessBase"]
[SourceQuality "1"]
[TimeControl "900+10"]

1. e4 {[%emt 0:00:01]} e5 {[%emt 0:00:01]} 2. Nf3 {[%emt 0:00:02]} Nc6 {[%emt 0:00:01]} 3. Bc4 {[%emt 0:00:02]} Bc5 {[%emt 0:00:01]} 4. O-O {[%emt 0:00:04]} Nf6 {[%emt 0:00:02]} 5. d3 {[%emt 0:00:02]} d6 {[%emt 0:00:02]} 6. c3 {[%emt 0:00:04]} a6 {[%emt 0:00:01]} 7. Bb3 {[%emt 0:00:05]} Ba7 {[%emt 0:00:00]} 8. Bc2 {[%emt 0:00:04]} h6 {[%emt 0:00:09]} 9. Nbd2 {[%emt 0:00:54]} g5 {[%emt 0:00:01]} 10. g3 {[%emt 0:02:43]} Bh3 {[%emt 0:00:11]} 11. Re1 {[%emt 0:00:09]} Ng4 {[%emt 0:00:05]} 12. Re2 {[%emt 0:00:58]} Qf6 {[%emt 0:00:02]} 13. Qe1 {[%emt 0:01:09]} O-O-O {[%emt 0:01:17]} 14. b4 {[%emt 0:00:37]} h5 {[%emt 0:00:08]} 15. a4 {[%emt 0:00:43]} h4 {[%emt 0:00:07]} 16. b5 {[%emt 0:00:04]} Nb8 {[%emt 0:00:02]} 17. d4 {[%emt 0:00:17]} hxg3 {[%emt 0:00:07]} 18. fxg3 {[%emt 0:01:58]} exd4 {[%emt 0:00:13]} 19. cxd4 {[%emt 0:01:34]} Bxd4+ {[%emt 0:00:07]} 20. Nxd4 {[%emt 0:00:21]} Qxd4+ {[%emt 0:00:03]} 21. Kh1 {[%emt 0:00:02]} Qxa1 {[%emt 0:00:19]} 22. e5 {[%emt 0:00:50]} Nxe5 {[%emt 0:00:37]} 23. Nb1 {[%emt 0:00:59]} Bg4 {[%emt 0:00:29]} 24. Bb2 {[%emt 0:00:20]} Qa2 {[%emt 0:01:03]} 25. Nc3 {[%emt 0:01:09]} Bf3+ {[%emt 0:00:45]} 26. Kg1 {[%emt 0:00:05]} Qc4 {[%emt 0:00:21]} 27. Rf2 {[%emt 0:01:47]} Bg4 {[%emt 0:01:21]} 28. Be4 {[%emt 0:00:14]} d5 {[%emt 0:00:52]} 29. Nxd5 {[%emt 0:01:48]} Rxd5 {[%emt 0:00:12]} 30. Rc2 {[%emt 0:00:04]} Qxc2 {[%emt 0:01:31] Check Result:-#1} 31. Qd1 {[%emt 0:00:00]} 0-1

[Event "Asian Amateur Rapid 2024"]
[Site "Al Ain"]
[Date "2024.12.15"]
[Round "6.15"]
[White "Rashed Abubaker, Alhemeiri"]
[Black "Al Abdali, Zeyad Saleh"]
[Result "0-1"]
[ECO "C02"]
[WhiteElo "1861"]
[BlackElo "1744"]
[Annotator "NA COMBH"]
[PlyCount "58"]
[EventDate "2024.12.15"]
[EventType "swiss"]
[EventCountry "UAE"]
[SourceTitle "playchess.com"]
[Source "ChessBase"]
[SourceQuality "1"]
[TimeControl "900+10"]

1. e4 {[%emt 0:00:03]} e6 {[%emt 0:00:05]} 2. d4 {[%emt 0:00:05]} d5 {[%emt 0:00:02]} 3. e5 {[%emt 0:00:01]} c5 {[%emt 0:00:02]} 4. c3 {[%emt 0:00:01]} Nc6 {[%emt 0:00:02]} 5. f4 {[%emt 0:00:04]} Nh6 {[%emt 0:00:31]} 6. Nf3 {[%emt 0:00:10]} Bd7 {[%emt 0:00:26]} 7. Be2 {[%emt 0:00:24]} Nf5 {[%emt 0:00:12]} 8. g4 {[%emt 0:00:03]} Nh4 {[%emt 0:00:07]} 9. Be3 {[%emt 0:00:17]} Ng2+ {[%emt 0:00:23]} 10. Kf2 {[%emt 0:00:11]} Nxe3 {[%emt 0:00:01]} 11. Kxe3 {[%emt 0:00:04]} Rc8 {[%emt 0:01:03]} 12. Nbd2 {[%emt 0:01:24]} Be7 {[%emt 0:01:08]} 13. h4 {[%emt 0:03:13]} f6 {[%emt 0:00:33]} 14. Rc1 {[%emt 0:01:53]} cxd4+ {[%emt 0:03:58]} 15. cxd4 {[%emt 0:00:17]} fxe5 {[%emt 0:00:02]} 16. fxe5 {[%emt 0:03:01]} g5 {[%emt 0:01:34]} 17. h5 {[%emt 0:00:24]} O-O {[%emt 0:00:10]} 18. Bd3 {[%emt 0:01:36]} Rf4 {[%emt 0:01:14]} 19. Qc2 {[%emt 0:00:43]} Nxe5 {[%emt 0:02:24]} 20. Nxe5 {[%emt 0:00:12]} Rxc2 {[%emt 0:00:06]} 21. Rxc2 {[%emt 0:00:01]} Bf6 {[%emt 0:00:58]} 22. Ndf3 {[%emt 0:00:12]} Bxe5 {[%emt 0:00:12]} 23. Nxe5 {[%emt 0:01:15]} Qb6 {[%emt 0:00:04]} 24. Nf3 {[%emt 0:00:02]} e5 {[%emt 0:00:42]} 25. Bxh7+ {[%emt 0:00:52]} Kxh7 {[%emt 0:00:12]} 26. Nxg5+ {[%emt 0:00:06]} Kh6 {[%emt 0:00:06]} 27. Nf3 {[%emt 0:00:05]} Bxg4 {[%emt 0:00:07]} 28. Rg1 {[%emt 0:00:37]} Rxf3+ {[%emt 0:00:03]} 29. Kd2 {[%emt 0:00:00] Check Result:-#3} Qxd4+ {[%emt 0:00:03]} 0-1

[Event "Asian Amateur Rapid 2024"]
[Site "Al Ain"]
[Date "2024.12.15"]
[Round "6.16"]
[White "Adel, Tahseen Khalil"]
[Black "Eisa Mohmood, Alkhoori"]
[Result "1-0"]
[ECO "A56"]
[WhiteElo "1833"]
[BlackElo "1853"]
[Annotator "NA COMBH"]
[PlyCount "40"]
[EventDate "2024.12.15"]
[EventType "swiss"]
[EventCountry "UAE"]
[SourceTitle "playchess.com"]
[Source "ChessBase"]
[SourceQuality "1"]
[TimeControl "900+10"]

1. d4 {[%emt 0:00:01]} Nf6 {[%emt 0:00:01]} 2. c4 {[%emt 0:00:02]} c5 {[%emt 0:00:01]} 3. d5 {[%emt 0:00:02]} e5 {[%emt 0:00:02]} 4. Nc3 {[%emt 0:00:01]} d6 {[%emt 0:00:01]} 5. e4 {[%emt 0:00:02]} Be7 {[%emt 0:00:03]} 6. Be2 {[%emt 0:00:02]} O-O {[%emt 0:00:02]} 7. h3 {[%emt 0:00:02]} Nbd7 {[%emt 0:00:17]} 8. Be3 {[%emt 0:00:05]} a6 {[%emt 0:00:04]} 9. Nf3 {[%emt 0:00:22]} Rb8 {[%emt 0:00:11]} 10. Nd2 {[%emt 0:00:12]} Ne8 {[%emt 0:01:09]} 11. Qc2 {[%emt 0:02:27]} Bg5 {[%emt 0:00:22]} 12. Qd3 {[%emt 0:01:08]} Bxe3 {[%emt 0:00:22]} 13. Qxe3 {[%emt 0:00:02]} Kh8 {[%emt 0:14:45]} 14. g4 {[%emt 0:00:07]} b5 {[%emt 0:00:00]} 15. cxb5 {[%emt 0:00:11]} axb5 {[%emt 0:00:00]} 16. Bxb5 {[%emt 0:00:02]} Qa5 {[%emt 0:00:30]} 17. Qe2 {[%emt 0:02:52]} Nc7 {[%emt 0:00:00]} 18. Nc4 {[%emt 0:00:37]} Qb6 {[%emt 0:00:00]} 19. Nxb6 {[%emt 0:00:02]} Nxb6 20. Nb1 {[%emt 0:10:11] Check Result:8.80} Nd7 1-0

[Event "Asian Amateur Rapid 2024"]
[Site "Al Ain"]
[Date "2024.12.15"]
[Round "6.17"]
[White "Kanev, Evgeny"]
[Black "Ghaith Saeed Alnuaimi"]
[Result "0-1"]
[ECO "A08"]
[WhiteElo "1785"]
[BlackElo "1870"]
[Annotator "NA COMBH"]
[PlyCount "88"]
[EventDate "2024.12.15"]
[EventType "swiss"]
[EventCountry "UAE"]
[SourceTitle "playchess.com"]
[Source "ChessBase"]
[SourceQuality "1"]
[TimeControl "900+10"]

1. Nf3 {[%emt 0:00:01]} Nf6 {[%emt 0:00:02]} 2. g3 {[%emt 0:00:01]} d5 {[%emt 0:00:09]} 3. Bg2 {[%emt 0:00:02]} e6 {[%emt 0:00:04]} 4. O-O {[%emt 0:00:02]} Be7 {[%emt 0:00:03]} 5. d3 {[%emt 0:00:03]} c5 {[%emt 0:00:13]} 6. Nfd2 {[%emt 0:00:01]} Nc6 {[%emt 0:00:05]} 7. Nc3 {[%emt 0:00:02]} Rb8 {[%emt 0:00:15]} 8. e4 {[%emt 0:00:02]} b5 {[%emt 0:00:04]} 9. f4 {[%emt 0:00:11]} b4 {[%emt 0:00:08]} 10. Ne2 {[%emt 0:00:01]} O-O {[%emt 0:00:17]} 11. e5 {[%emt 0:00:21]} Nd7 {[%emt 0:00:03]} 12. Nf3 {[%emt 0:00:03]} f6 {[%emt 0:00:10]} 13. d4 {[%emt 0:00:56]} Ba6 {[%emt 0:00:13]} 14. Bh3 {[%emt 0:00:43]} f5 {[%emt 0:00:01]} 15. Rf2 {[%emt 0:00:35]} Qb6 {[%emt 0:00:10]} 16. Be3 {[%emt 0:00:22]} Bxe2 {[%emt 0:00:37]} 17. Rxe2 {[%emt 0:00:29]} cxd4 {[%emt 0:00:21]} 18. Nxd4 {[%emt 0:00:20]} Nxd4 {[%emt 0:01:02]} 19. Qxd4 {[%emt 0:01:51]} Bc5 {[%emt 0:00:06]} 20. Qd2 {[%emt 0:00:16]} Rfc8 {[%emt 0:00:01]} 21. Bf1 {[%emt 0:00:26]} Bxe3+ {[%emt 0:00:07]} 22. Rxe3 {[%emt 0:00:04]} Nc5 {[%emt 0:00:20]} 23. Qd4 {[%emt 0:00:56]} Na4 {[%emt 0:00:46]} 24. Qxb6 {[%emt 0:00:23]} Rxb6 {[%emt 0:00:03]} 25. b3 {[%emt 0:01:46]} Nc5 {[%emt 0:02:02]} 26. a3 {[%emt 0:03:36]} Ne4 {[%emt 0:00:33]} 27. Bd3 {[%emt 0:01:32]} Nc5 {[%emt 0:00:45]} 28. Bf1 {[%emt 0:00:09]} Ne4 {[%emt 0:00:54]} 29. Bd3 {[%emt 0:00:01]} Rc7 {[%emt 0:00:09]} 30. axb4 {[%emt 0:00:07]} Rxb4 {[%emt 0:00:02]} 31. Ree1 {[%emt 0:03:56]} Rd4 {[%emt 0:00:56]} 32. Ra5 {[%emt 0:00:14]} Nc5 {[%emt 0:00:12]} 33. Bf1 {[%emt 0:00:37]} Rd2 {[%emt 0:00:22]} 34. b4 {[%emt 0:00:11]} Ne4 {[%emt 0:00:46]} 35. Bd3 {[%emt 0:00:02]} g5 {[%emt 0:00:01]} 36. Rea1 {[%emt 0:00:09]} gxf4 {[%emt 0:00:02]} 37. Rxa7 {[%emt 0:00:26]} Rxa7 {[%emt 0:00:23]} 38. Rxa7 {[%emt 0:00:01]} f3 {[%emt 0:00:20]} 39. b5 {[%emt 0:00:18]} Rd1+ {[%emt 0:00:11]} 40. Bf1 {[%emt 0:00:03]} Nd2 {[%emt 0:00:13]} 41. Kf2 {[%emt 0:00:12]} Rxf1+ {[%emt 0:00:02]} 42. Ke3 {[%emt 0:00:01]} Nc4+ {[%emt 0:00:02]} 43. Kd3 {[%emt 0:00:06]} Rd1+ {[%emt 0:00:08]} 44. Kc3 {[%emt 0:00:16] Check Result:-#9} f2 {[%emt 0:00:00]} 0-1

[Event "Asian Amateur Rapid 2024"]
[Site "Al Ain"]
[Date "2024.12.15"]
[Round "6.18"]
[White "Yahya Shuaib Al Kaff"]
[Black "Al Balushi, Salim"]
[Result "1-0"]
[ECO "A43"]
[WhiteElo "1879"]
[BlackElo "1612"]
[Annotator "NA COMBH"]
[PlyCount "45"]
[EventDate "2024.12.15"]
[EventType "swiss"]
[EventCountry "UAE"]
[SourceTitle "playchess.com"]
[Source "ChessBase"]
[SourceQuality "1"]
[TimeControl "900+10"]

1. d4 {[%emt 0:00:01]} c5 {[%emt 0:00:14]} 2. Nf3 {[%emt 0:00:22]} cxd4 {[%emt 0:00:19]} 3. Nxd4 {[%emt 0:00:04]} Nc6 {[%emt 0:00:06]} 4. e3 {[%emt 0:00:29]} a6 {[%emt 0:01:48]} 5. c4 {[%emt 0:00:38]} g6 {[%emt 0:00:11]} 6. Be2 {[%emt 0:00:10]} e5 {[%emt 0:00:07]} 7. Nc2 {[%emt 0:00:25]} d6 {[%emt 0:00:06]} 8. O-O {[%emt 0:00:31]} Be6 {[%emt 0:00:12]} 9. Nc3 {[%emt 0:00:10]} Bg7 {[%emt 0:00:11]} 10. b3 {[%emt 0:01:49]} Nge7 {[%emt 0:00:22]} 11. Ba3 {[%emt 0:00:28]} Nc8 {[%emt 0:01:38]} 12. Ne4 {[%emt 0:00:53]} Bf8 {[%emt 0:02:14]} 13. f4 {[%emt 0:00:51]} Be7 {[%emt 0:00:30]} 14. fxe5 {[%emt 0:01:40]} Nxe5 {[%emt 0:00:53]} 15. Qd4 {[%emt 0:00:58]} f5 {[%emt 0:00:38]} 16. Nc5 {[%emt 0:00:59]} Bf7 {[%emt 0:01:51]} 17. Rad1 {[%emt 0:01:12]} Bf6 {[%emt 0:00:19]} 18. Nxb7 {[%emt 0:00:29]} Qd7 {[%emt 0:03:46]} 19. Nxd6+ {[%emt 0:00:11]} Nxd6 {[%emt 0:00:31]} 20. Qxd6 {[%emt 0:00:07]} Qxd6 {[%emt 0:00:53]} 21. Bxd6 {[%emt 0:00:04]} O-O-O {[%emt 0:00:26]} 22. c5 {[%emt 0:00:07]} Rhe8 {[%emt 0:00:15] Check Result:4.77} 23. Bxa6+ {[%emt 0:00:07]} 1-0

[Event "Asian Amateur Rapid 2024"]
[Site "Al Ain"]
[Date "2024.12.15"]
[Round "6.19"]
[White "Hamad Shuaib Al Kaff"]
[Black "Rashid Husain Alhammadi"]
[Result "1/2-1/2"]
[ECO "D02"]
[WhiteElo "1710"]
[BlackElo "1914"]
[Annotator "NA COMBH"]
[PlyCount "52"]
[EventDate "2024.12.15"]
[EventType "swiss"]
[EventCountry "UAE"]
[SourceTitle "playchess.com"]
[Source "ChessBase"]
[SourceQuality "1"]
[TimeControl "900+10"]

1. d4 {[%emt 0:00:02]} d5 {[%emt 0:00:01]} 2. Nf3 {[%emt 0:00:02]} Nf6 {[%emt 0:00:07]} 3. g3 {[%emt 0:00:04]} g6 {[%emt 0:00:00]} 4. Bg2 {[%emt 0:00:02]} Bg7 {[%emt 0:00:01]} 5. O-O {[%emt 0:00:02]} O-O {[%emt 0:00:02]} 6. a4 {[%emt 0:00:02]} a5 {[%emt 0:01:18]} 7. Nc3 {[%emt 0:00:07]} c6 {[%emt 0:00:05]} 8. Ne5 {[%emt 0:01:10]} Nbd7 {[%emt 0:01:02]} 9. b3 {[%emt 0:00:56]} Nxe5 {[%emt 0:00:59]} 10. dxe5 {[%emt 0:00:16]} Ng4 {[%emt 0:00:34]} 11. e4 {[%emt 0:02:20]} Bxe5 {[%emt 0:02:09]} 12. Bb2 {[%emt 0:00:15]} dxe4 {[%emt 0:01:15]} 13. Bxe4 {[%emt 0:01:18]} Bg7 {[%emt 0:00:29]} 14. Bf3 {[%emt 0:01:38]} Ne5 {[%emt 0:01:05]} 15. Bg2 {[%emt 0:00:03]} Bg4 {[%emt 0:00:38]} 16. Qc1 {[%emt 0:01:02]} Bf3 {[%emt 0:01:25]} 17. Nd1 {[%emt 0:02:48]} Bxg2 {[%emt 0:04:00]} 18. Kxg2 {[%emt 0:00:10]} Qd5+ {[%emt 0:00:07]} 19. f3 {[%emt 0:00:11]} Rad8 {[%emt 0:00:01]} 20. Ne3 {[%emt 0:00:45]} Qc5 {[%emt 0:01:07]} 21. Re1 {[%emt 0:00:26]} Rd7 {[%emt 0:01:38]} 22. Ba3 {[%emt 0:02:08]} Qc3 {[%emt 0:00:27]} 23. Bb2 {[%emt 0:00:27]} Rd2+ {[%emt 0:00:04]} 24. Kf1 {[%emt 0:00:26]} Nxf3 {[%emt 0:00:21]} 25. Bxc3 {[%emt 0:00:17]} Nxh2+ {[%emt 0:00:02]} 26. Kg1 {[%emt 0:00:00] Check Result:0.00} Nf3+ {[%emt 0:00:00]} 1/2-1/2

[Event "Asian Amateur Rapid 2024"]
[Site "Al Ain"]
[Date "2024.12.15"]
[Round "6.20"]
[White "Al Hosni, Khalfan"]
[Black "Shelke Omkar"]
[Result "0-1"]
[ECO "B23"]
[WhiteElo "1749"]
[BlackElo "1764"]
[Annotator "NA COMBH"]
[PlyCount "80"]
[EventDate "2024.12.15"]
[EventType "swiss"]
[EventCountry "UAE"]
[SourceTitle "playchess.com"]
[Source "ChessBase"]
[SourceQuality "1"]
[TimeControl "900+10"]

1. e4 {[%emt 0:00:01]} c5 {[%emt 0:00:01]} 2. Nc3 {[%emt 0:00:03]} e6 {[%emt 0:00:14]} 3. d4 {[%emt 0:00:05]} cxd4 {[%emt 0:00:05]} 4. Qxd4 {[%emt 0:00:02]} Nc6 {[%emt 0:00:01]} 5. Qe3 {[%emt 0:00:05]} Nf6 {[%emt 0:00:27]} 6. Bd2 {[%emt 0:00:05]} a6 {[%emt 0:01:25]} 7. f3 {[%emt 0:00:19]} d6 {[%emt 0:00:15]} 8. Bd3 {[%emt 0:00:24]} b5 {[%emt 0:00:10]} 9. g4 {[%emt 0:00:18]} Bb7 {[%emt 0:00:09]} 10. h4 {[%emt 0:00:18]} Be7 {[%emt 0:00:02]} 11. Nh3 {[%emt 0:00:18]} Ne5 {[%emt 0:00:13]} 12. Be2 {[%emt 0:00:57]} Qc7 {[%emt 0:00:04]} 13. g5 {[%emt 0:00:22]} Nfd7 {[%emt 0:00:02]} 14. Rc1 {[%emt 0:01:23]} Nc4 {[%emt 0:00:15]} 15. Bxc4 {[%emt 0:00:10]} Qxc4 {[%emt 0:00:02]} 16. b3 {[%emt 0:00:23]} Qc5 {[%emt 0:00:22]} 17. Qe2 {[%emt 0:01:13]} d5 {[%emt 0:01:27]} 18. exd5 {[%emt 0:00:17]} exd5 {[%emt 0:00:05]} 19. b4 {[%emt 0:01:35]} Qd6 {[%emt 0:00:26]} 20. Nf4 {[%emt 0:00:31]} O-O {[%emt 0:00:26]} 21. O-O {[%emt 0:00:34]} Rfe8 {[%emt 0:00:07]} 22. Qg2 {[%emt 0:00:55]} Ne5 {[%emt 0:00:13]} 23. Rcd1 {[%emt 0:00:36]} Nc4 {[%emt 0:00:14]} 24. Bc1 {[%emt 0:00:15]} Qxb4 {[%emt 0:00:20]} 25. Nfxd5 {[%emt 0:01:10]} Qc5+ {[%emt 0:00:26]} 26. Kh1 {[%emt 0:00:32]} Kh8 {[%emt 0:00:42]} 27. Ne4 {[%emt 0:00:41]} Qc6 {[%emt 0:00:27]} 28. Qg3 {[%emt 0:01:13]} Rad8 {[%emt 0:01:18]} 29. Nxe7 {[%emt 0:00:50]} Rxd1 {[%emt 0:01:27]} 30. Rxd1 {[%emt 0:00:04]} Qe6 {[%emt 0:00:34]} 31. Nd6 {[%emt 0:02:24]} Nxd6 {[%emt 0:01:08]} 32. Qxd6 {[%emt 0:00:57]} Bxf3+ {[%emt 0:00:10]} 33. Kg1 {[%emt 0:00:14]} Bxd1 {[%emt 0:01:22]} 34. Ba3 {[%emt 0:01:03]} Qxd6 {[%emt 0:00:27]} 35. Bxd6 {[%emt 0:00:04]} Bxc2 {[%emt 0:00:11]} 36. h5 {[%emt 0:00:03]} h6 {[%emt 0:00:51]} 37. gxh6 {[%emt 0:00:44]} gxh6 {[%emt 0:00:04]} 38. Kg2 {[%emt 0:00:02]} Kg7 {[%emt 0:01:10]} 39. Kf3 {[%emt 0:00:01]} Bd1+ {[%emt 0:01:07]} 40. Kf4 {[%emt 0:00:04] Check Result:-5.39} Bxh5 {[%emt 0:00:18]} 0-1

[Event "Asian Amateur Rapid 2024"]
[Site "Al Ain"]
[Date "2024.12.15"]
[Round "6.21"]
[White "Sendi, David V"]
[Black "Ibrahim Imran Saeed"]
[Result "1-0"]
[ECO "C56"]
[WhiteElo "1747"]
[BlackElo "1681"]
[Annotator "NA COMBH"]
[PlyCount "79"]
[EventDate "2024.12.15"]
[EventType "swiss"]
[EventCountry "UAE"]
[SourceTitle "playchess.com"]
[Source "ChessBase"]
[SourceQuality "1"]
[TimeControl "900+10"]

1. e4 {[%emt 0:00:01]} e5 {[%emt 0:00:02]} 2. Nf3 {[%emt 0:00:01]} Nc6 {[%emt 0:00:01]} 3. d4 {[%emt 0:00:01]} exd4 {[%emt 0:00:06]} 4. Bc4 {[%emt 0:00:00]} Nf6 {[%emt 0:00:11]} 5. e5 {[%emt 0:00:02]} d5 {[%emt 0:00:01]} 6. Bb5 {[%emt 0:00:00]} Ne4 {[%emt 0:00:07]} 7. Nxd4 {[%emt 0:00:05]} Bd7 {[%emt 0:00:37]} 8. Bxc6 {[%emt 0:00:02]} bxc6 {[%emt 0:00:07]} 9. O-O {[%emt 0:00:01]} Be7 {[%emt 0:00:20]} 10. f3 {[%emt 0:00:04]} Nc5 {[%emt 0:00:02]} 11. Be3 {[%emt 0:00:14]} O-O {[%emt 0:00:26]} 12. c3 {[%emt 0:00:22]} Ne6 {[%emt 0:00:24]} 13. Nxe6 {[%emt 0:00:07]} fxe6 {[%emt 0:00:18]} 14. b4 {[%emt 0:00:05]} a5 {[%emt 0:00:11]} 15. Qb3 {[%emt 0:00:14]} axb4 {[%emt 0:00:07]} 16. cxb4 {[%emt 0:00:02]} Rb8 {[%emt 0:00:24]} 17. a3 {[%emt 0:00:06]} c5 {[%emt 0:00:05]} 18. Bd2 {[%emt 0:00:05]} c4 {[%emt 0:00:27]} 19. Qc2 {[%emt 0:00:09]} c5 {[%emt 0:00:20]} 20. bxc5 {[%emt 0:00:08]} Bxc5+ {[%emt 0:00:03]} 21. Kh1 {[%emt 0:00:01]} Qc7 {[%emt 0:14:21]} 22. Nc3 {[%emt 0:00:19]} Qxe5 {[%emt 0:00:00]} 23. Rae1 {[%emt 0:00:02]} Qh5 {[%emt 0:00:00]} 24. Ne2 {[%emt 0:00:20]} Bd6 {[%emt 0:00:00]} 25. h3 {[%emt 0:00:02]} e5 {[%emt 0:00:00]} 26. Ng1 {[%emt 0:16:57]} Rf6 {[%emt 0:00:00]} 27. a4 {[%emt 0:00:00]} Rbf8 {[%emt 0:00:00]} 28. a5 {[%emt 0:00:00]} Rg6 {[%emt 0:00:00]} 29. a6 {[%emt 0:00:00]} Rxg2 {[%emt 0:00:00]} 30. Kxg2 {[%emt 0:00:00]} Rf6 {[%emt 0:00:00]} 31. a7 {[%emt 0:00:00]} Bc6 {[%emt 0:00:00]} 32. Rb1 {[%emt 0:00:00]} Rf8 {[%emt 0:00:00]} 33. Be3 {[%emt 0:00:00]} Qf7 {[%emt 0:00:00]} 34. Bf2 {[%emt 0:00:00]} e4 {[%emt 0:00:00]} 35. fxe4 {[%emt 0:00:00]} dxe4 {[%emt 0:00:00]} 36. Be3 {[%emt 0:00:00]} Qg6+ {[%emt 0:00:00]} 37. Kh1 {[%emt 0:00:00]} Qe6 {[%emt 0:02:07]} 38. Rxf8+ {[%emt 0:00:00]} Kxf8 {[%emt 0:00:31]} 39. Rb8+ {[%emt 0:00:00]} Kf7 {[%emt 0:00:11] Check Result:12.01} 40. Qf2+ {[%emt 0:00:00]} 1-0